fUSD/lending_fUSD_20251012
["ID","MTS","AMOUNT","RATE_DAILY","PERIOD"]
[391081154,1760305848853,-187.434333,0.00029261,30]
[391081155,1760305848863,-187.434333,0.00029261,30]
[391081156,1760305848872,-187.434333,0.00029261,30]
[391081157,1760305848881,-187.434333,0.00029261,30]
[391081158,1760305848891,-187.434333,0.00029261,30]
[391081159,1760305848899,-187.434333,0.00029261,30]
[391081160,1760305848909,-151.0,0.00029261,30]
[391081161,1760305848918,-187.434333,0.00029261,30]
[391081162,1760305848926,-151.0,0.00029261,30]
[391081163,1760305848935,-187.434333,0.00029261,30]
[391081164,1760305848944,-151.0,0.00029261,30]
[391081165,1760305848953,-187.434326,0.00029261,30]
[391081166,1760305848962,-151.0,0.00029261,30]
[391081167,1760305848972,-151.0,0.00029261,30]
[391081168,1760305848981,-151.0,0.00029261,30]
[391081169,1760305848991,-151.0,0.00029261,30]
[391081170,1760305849001,-151.0,0.00029261,30]
[391081171,1760305849010,-151.0,0.00029261,30]
[391081172,1760305849019,-151.0,0.00029261,30]
[391081173,1760305849028,-151.0,0.00029261,30]
[391081174,1760305849038,-3447.993145,0.00029261,30]
[391081175,1760305849047,-151.0,0.00029261,30]
[391081176,1760305849056,-3447.993145,0.00029261,30]
[391081177,1760305849065,-151.0,0.00029261,30]
[391081178,1760305849075,-3447.993145,0.00029261,30]
[391081179,1760305849084,-151.0,0.00029261,30]
[391081180,1760305849093,-161.392809,0.00029261,30]
[391081181,1760305849102,-3447.993145,0.00029261,30]
[391081182,1760305849111,-3447.993145,0.00029261,30]
[391081183,1760305849121,-3447.993145,0.00029261,30]
[391081184,1760305849131,-3447.993145,0.00029261,30]
[391081185,1760305849140,-3447.993145,0.00029261,30]
[391081186,1760305849151,-3447.993145,0.00029261,30]
[391081187,1760305849161,-3447.993145,0.00029261,30]
[391081188,1760305849171,-3447.993145,0.00029261,30]
[391081189,1760305849182,-3447.993145,0.00029261,30]
[391081190,1760305849191,-3447.993145,0.00029261,30]
[391081191,1760305849202,-3447.993145,0.00029261,30]
[391081192,1760305849211,-3447.993145,0.00029261,30]
[391081193,1760305849222,-3447.993145,0.00029261,30]
[391081194,1760305849232,-3447.993145,0.00029261,30]
[391081195,1760305849242,-3447.993145,0.00029261,30]
[391081196,1760305849251,-3447.993145,0.00029261,30]
[391081197,1760305849261,-3447.993153,0.00029261,30]
[391081198,1760305849271,-151.0,0.00029261,30]
[391081199,1760305849280,-174.402039,0.00029261,2]
[391081200,1760305849289,-151.0,0.00029261,30]
[391081201,1760305849300,-174.402039,0.00029261,2]
[391081202,1760305849309,-152.88316,0.00029261,30]
[391081203,1760305849319,-174.402039,0.00029261,2]
[391081204,1760305849328,-174.402039,0.00029261,2]
[391081205,1760305849338,-174.402039,0.00029261,2]
[391081206,1760305849348,-174.402039,0.00029261,2]
[391081207,1760305849357,-174.402039,0.00029261,2]
[391081208,1760305849366,-174.402039,0.00029261,2]
[391081209,1760305849376,-174.402039,0.00029261,2]
[391081210,1760305849385,-174.402039,0.00029261,2]
[391081211,1760305849395,-174.402039,0.00029261,2]
[391081212,1760305849404,-174.402039,0.00029261,2]
[391081213,1760305849413,-174.402039,0.00029261,2]
[391081214,1760305849423,-174.402039,0.00029261,2]
[391081215,1760305849431,-174.402039,0.00029261,2]
[391081216,1760305849441,-174.402039,0.00029261,2]
[391081217,1760305849450,-174.402039,0.00029261,2]
[391081218,1760305849459,-151.0,0.00029261,30]
[391081219,1760305849469,-174.402039,0.00029261,2]
[391081220,1760305849478,-151.0,0.00029261,30]
[391081221,1760305849488,-174.402039,0.00029261,2]
[391081222,1760305849497,-174.402031,0.00029261,2]
[391081223,1760305849506,-151.0,0.00029261,30]
[391081224,1760305849515,-151.0,0.00029261,30]
[391081225,1760305849525,-151.0,0.00029261,30]
[391081226,1760305849534,-164.237617,0.00029261,30]
[391081227,1760305849544,-151.0,0.00029261,30]
[391081228,1760305849554,-151.0,0.00029261,30]
[391081229,1760305849563,-151.0,0.00029261,30]
[391081230,1760305849574,-151.0,0.00029261,30]
[391081231,1760305849584,-151.0,0.00029261,30]
[391081232,1760305849593,-151.0,0.00029261,30]
[391081233,1760305849603,-151.0,0.00029261,30]
[391081234,1760305849614,-151.0,0.00029261,30]
[391081235,1760305849623,-151.0,0.00029261,30]
[391081236,1760305849633,-151.0,0.00029261,30]
[391081237,1760305849642,-151.0,0.00029261,30]
[391081238,1760305849653,-151.0,0.00029261,30]
[391081239,1760305849663,-151.0,0.00029261,30]
[391081240,1760305849673,-208.764744,0.00029261,30]
[391081241,1760305849683,-151.0,0.00029261,30]
[391081242,1760305849695,-151.0,0.00029261,30]
[391081243,1760305849704,-151.0,0.00029261,30]
[391081244,1760305849716,-151.0,0.00029261,30]
[391081245,1760305849726,-151.0,0.00029261,30]
[391081246,1760305849737,-151.0,0.00029261,30]
[391081247,1760305849748,-151.0,0.00029261,30]
[391081248,1760305849759,-173.150885,0.00029261,30]
[391081249,1760305849768,-151.0,0.00029261,30]
[391081250,1760305849778,-151.0,0.00029261,30]
[391081251,1760305849789,-151.0,0.00029261,30]
[391081252,1760305849801,-151.0,0.00029261,30]
[391081253,1760305849812,-151.0,0.00029261,30]
[391081254,1760305849823,-154.453723,0.00029261,30]
[391081255,1760305849833,-202.543648,0.00029261,30]
[391081256,1760305849844,-202.543648,0.00029261,30]
[391081257,1760305849854,-202.543648,0.00029261,30]
[391081258,1760305849869,-202.543648,0.00029261,30]
[391081259,1760305849879,-202.543648,0.00029261,30]
[391081260,1760305849888,-202.543648,0.00029261,30]
[391081261,1760305849898,-202.543648,0.00029261,30]
[391081262,1760305849908,-202.543648,0.00029261,30]
[391081263,1760305849918,-202.543648,0.00029261,30]
[391081264,1760305849928,-202.543648,0.00029261,30]
[391081265,1760305849938,-202.543648,0.00029261,30]
[391081266,1760305849948,-202.543648,0.00029261,30]
[391081267,1760305849958,-202.543648,0.00029261,30]
[391081268,1760305849968,-202.543648,0.00029261,30]
[391081269,1760305849980,-202.543648,0.00029261,30]
[391081270,1760305849991,-202.543648,0.00029261,30]
[391081271,1760305850001,-202.543648,0.00029261,30]
[391081272,1760305850011,-202.543648,0.00029261,30]
[391081273,1760305850020,-202.543648,0.00029261,30]
[391081274,1760305850029,-202.543645,0.00029261,30]
[391081275,1760305850038,-410.83301,0.00029261,30]
[391081276,1760305850048,-410.83301,0.00029261,30]
[391081277,1760305850057,-410.83301,0.00029261,30]
[391081278,1760305850067,-410.83301,0.00029261,30]
[391081279,1760305850076,-410.83301,0.00029261,30]
[391081280,1760305850085,-410.83301,0.00029261,30]
[391081281,1760305850095,-410.83301,0.00029261,30]
[391081282,1760305850104,-410.83301,0.00029261,30]
[391081283,1760305850113,-189.115758,0.00029261,30]
[391081284,1760305850123,-410.83301,0.00029261,30]
[391081285,1760305850133,-189.115758,0.00029261,30]
[391081286,1760305850143,-410.83301,0.00029261,30]
[391081287,1760305850153,-189.115758,0.00029261,30]
[391081288,1760305850164,-410.83301,0.00029261,30]
[391081289,1760305850174,-189.115758,0.00029261,30]
[391081290,1760305850185,-410.83301,0.00029261,30]
[391081291,1760305850194,-410.83301,0.00029261,30]
[391081292,1760305850205,-189.115758,0.00029261,30]
[391081293,1760305850214,-410.83301,0.00029261,30]
[391081294,1760305850224,-189.115758,0.00029261,30]
[391081295,1760305850234,-410.83301,0.00029261,30]
[391081296,1760305850244,-189.115758,0.00029261,30]
[391081297,1760305850255,-410.83301,0.00029261,30]
[391081298,1760305850265,-189.115758,0.00029261,30]
[391081299,1760305850275,-410.83301,0.00029261,30]
[391081300,1760305850287,-189.115758,0.00029261,30]
[391081301,1760305850296,-410.83301,0.00029261,30]
[391081302,1760305850306,-410.83301,0.00029261,30]
[391081303,1760305850315,-189.115758,0.00029261,30]
[391081304,1760305850325,-189.115758,0.00029261,30]
[391081305,1760305850334,-410.833018,0.00029261,30]
[391081306,1760305850343,-189.115758,0.00029261,30]
[391081307,1760305850352,-189.115758,0.00029261,30]
[391081308,1760305850362,-309.238174,0.00029261,30]
[391081309,1760305850371,-189.115758,0.00029261,30]
[391081310,1760305850380,-309.238174,0.00029261,30]
[391081311,1760305850389,-189.115758,0.00029261,30]
[391081312,1760305850399,-309.238174,0.00029261,30]
[391081313,1760305850408,-189.115758,0.00029261,30]
[391081314,1760305850417,-309.238174,0.00029261,30]
[391081315,1760305850558,-189.115758,0.00029261,30]
[391081316,1760305850570,-309.238174,0.00029261,30]
[391081317,1760305850583,-189.115758,0.00029261,30]
[391081318,1760305850594,-309.238174,0.00029261,30]
[391081319,1760305850605,-189.115758,0.00029261,30]
[391081320,1760305850615,-309.238174,0.00029261,30]
[391081321,1760305850624,-189.115756,0.00029261,30]
[391081322,1760305850633,-309.238174,0.00029261,30]
[391081323,1760305850642,-309.238174,0.00029261,30]
[391081324,1760305850651,-309.238174,0.00029261,30]
[391081325,1760305850660,-309.238174,0.00029261,30]
[391081326,1760305850669,-309.238174,0.00029261,30]
[391081327,1760305850678,-309.238174,0.00029261,30]
[391081328,1760305850688,-309.238174,0.00029261,30]
[391081329,1760305850697,-309.238174,0.00029261,30]
[391081330,1760305850706,-309.238174,0.00029261,30]
[391081331,1760305850715,-309.238174,0.00029261,30]
[391081332,1760305850724,-309.238174,0.00029261,30]
[391081333,1760305850733,-309.238174,0.00029261,30]
[391081334,1760305850742,-309.238171,0.00029261,30]
[391081335,1760305850751,-526.144673,0.00029261,30]
[391081336,1760305850760,-526.144673,0.00029261,30]
[391081337,1760305850769,-526.144673,0.00029261,30]
[391081338,1760305850778,-526.144673,0.00029261,30]
[391081339,1760305850793,-526.144673,0.00029261,30]
[391081340,1760305850802,-526.144673,0.00029261,30]
[391081341,1760305850812,-526.144673,0.00029261,30]
[391081342,1760305850821,-131992.07054789,0.00029261,8]
[391081343,1760305850832,-6687.40701996,0.00029261,2]
[391081344,1760305850842,-10479.14846587,0.00029261,30]
[391081345,1760305851208,-344433.61560805,0.00029261,30]
[391081346,1760305851222,-716.72934558,0.00029261,30]
[391081347,1760305851234,-765.86361001,0.00029261,30]
[391081348,1760305851246,-731.85336259,0.00029261,30]
[391081349,1760305851259,-1865.06417053,0.00029261,30]
[391081350,1760305851270,-3073.37228704,0.00029261,30]
[391081351,1760305851281,-342.65031027,0.00029261,30]
[391081352,1760305851293,-257.81190852,0.00029261,30]
[391081353,1760305851305,-1158.0,0.00029261,30]
[391081354,1760305851324,-151.0,0.00029261,30]
[391081355,1760305851334,-1432.66575278,0.00029261,30]
[391081356,1760305851346,-110716.36547321,0.00029261,30]
[391081357,1760305851357,-44206.02621086,0.00029261,30]
[391081358,1760305851369,-476.33,0.00029261,30]
[391081359,1760305851380,-931.50518705,0.00029261,30]
[391081360,1760305851410,-15068.60349051,0.00029261,30]
[391081361,1760305851421,-2291.1493595,0.00029261,30]
[391081362,1760305851433,-730.0,0.00029261,30]
[391081363,1760305851444,-539.97404301,0.00029261,30]
[391081364,1760305851455,-17905.08303879,0.00029261,30]
[391081365,1760305851467,-570.09571503,0.00029261,30]
[391081366,1760305852345,-526.144673,0.00029261,30]
[391081367,1760305852355,-419.15114562,0.00029261,30]
[391081368,1760305852368,-29471.75,0.00029261,30]
[391081369,1760305852382,-46449.93024,0.00029261,30]
[391081370,1760305853344,-279.0237717,0.00025,30]
[391081371,1760305853356,-431.3052383,0.00025,30]
[391081372,1760305853366,-514.39123869,0.00026392,2]
[391081373,1760305853375,-203.85091713,0.00026976,4]
[391081374,1760305853389,-151.0,0.00029261,30]
[391081375,1760305853403,-526.144673,0.00029261,30]
[391081376,1760305853415,-526.144673,0.00029261,30]
[391081377,1760305853425,-526.144673,0.00029261,30]
[391081378,1760305853435,-526.144673,0.00029261,30]
[391081379,1760305853445,-526.144673,0.00029261,30]
[391081380,1760305853454,-526.144673,0.00029261,30]
[391081381,1760305853464,-526.144673,0.00029261,30]
[391081382,1760305853474,-526.144673,0.00029261,30]
[391081383,1760305853484,-526.144673,0.00029261,30]
[391081384,1760305853493,-526.144673,0.00029261,30]
[391081385,1760305853503,-463.62848173,0.00029261,30]
[391081386,1760305853515,-62.51619127,0.00029261,30]
[391081387,1760305853525,-526.14467,0.00029261,30]
[391081388,1760305853534,-2879.37480561,0.00029261,30]
[391081389,1760305853545,-577.21437882,0.00029261,30]
[391081390,1760305853557,-916.29268649,0.00029261,30]
[391081391,1760305853568,-5754.6,0.00029261,30]
[391081392,1760305853583,-142064.14930595,0.00029261,30]
[391081393,1760305853594,-114789.4999999,0.00029261,30]
[391081394,1760305853605,-10788.34329152,0.00029261,30]
[391081395,1760305853616,-5350.0,0.00029261,30]
[391081396,1760305853628,-377.8335008,0.00029261,30]
[391081397,1760305853640,-2167.8688702,0.00029261,30]
[391081398,1760305853651,-446.735999,0.00029261,30]
[391081399,1760305853662,-27697.3329452,0.00029261,30]
[391081400,1760305853674,-22956.59040001,0.00029261,30]
[391081401,1760305853685,-280.0948527,0.00029261,30]
[391081402,1760305853747,-152.0,0.00028339,4]
[391081403,1760305853756,-2143.63591877,0.00029261,30]
[391081404,1760305853797,-1084212.55760139,0.00029261,30]
[391081405,1760305853808,-51601.71338083,0.00029261,30]
[391081406,1760305853820,-5903.84954234,0.00029261,30]
[391081407,1760305853833,-844.9023168,0.00029261,30]
[391081408,1760305853844,-2188.34099985,0.00029261,30]
[391081409,1760305853856,-440.66,0.00029261,30]
[391081410,1760305853870,-3243.0,0.00029261,30]
[391081411,1760305853881,-2206.0,0.00029261,30]
[391081412,1760305853895,-31973.41271518,0.00029261,30]
[391081413,1760305853908,-950.00002,0.00029261,30]
[391081414,1760305853919,-1312.84999995,0.00029261,30]
[391081415,1760305853930,-1921.81143,0.00029261,30]
[391081416,1760305853942,-1015.95344153,0.00029261,30]
[391081417,1760305854079,-152.0,0.00026781,3]
[391081418,1760305854089,-411.02173987,0.00029161,2]
[391081419,1760305854099,-129392.55586345,0.00029261,30]
[391081420,1760305854110,-370.756659,0.00029261,30]
[391081421,1760305854122,-10584.8,0.00029261,30]
[391081422,1760305854215,-8614.99999998,0.00029261,30]
[391081423,1760305854269,-401.8446335,0.00029261,30]
[391081424,1760305854280,-4257.96146389,0.00029261,30]
[391081425,1760305854409,-4522.137525,0.00029261,30]
[391081426,1760305854420,-1184.00002,0.00029261,30]
[391081427,1760305854431,-3534.9999997,0.00029261,30]
[391081428,1760305854643,-3053.20168902,0.00029261,30]
[391081429,1760305854656,-4857.4108236,0.00029261,30]
[391081430,1760305854669,-1800.824895,0.00029261,30]
[391081431,1760305854680,-637.5000005,0.00029261,30]
[391081432,1760305854693,-590.8400005,0.00029261,30]
[391081433,1760305854707,-2781.975,0.00029261,30]
[391081434,1760305854719,-9710.45260135,0.00029261,30]
[391081435,1760305854732,-1851.02047761,0.00029261,30]
[391081436,1760305854745,-390.43581403,0.00029261,30]
[391081437,1760305854760,-262.45576647,0.00029261,30]
[391081438,1760305854773,-3320.2236829,0.00029261,30]
[391081439,1760305854788,-407.72678551,0.00029261,30]
[391081440,1760305854799,-3800.0,0.00029261,30]
[391081448,1760306162124,1878.4352025,0.00027397,120]
[391081449,1760306191277,1690.8171874,0.0002,120]
[391081451,1760306360923,1600.0,0.00026653,120]
[391081459,1760306829631,1000.0,0.00027397,120]
[391081461,1760306870675,1000.0,0.00027397,120]
[391081462,1760306916294,1000.0,0.00027397,120]
[391081464,1760306961472,1000.0,0.00027397,120]
[391081465,1760306997372,416.67,0.00027397,120]
[391081466,1760307006667,1000.0,0.00027397,120]
[391081480,1760307031980,-179.41210662,0.00013575,2]
[391081481,1760307031990,-150.67581666,0.00013651,2]
[391081482,1760307032000,-2000.0,0.00013663,2]
[391081483,1760307032011,-250.0,0.00013675,2]
[391081484,1760307032023,-435.71,0.00013699,2]
[391081485,1760307032033,-195.0,0.00013756,2]
[391081486,1760307032042,-300.0,0.00013756,2]
[391081487,1760307032052,-326.56711202,0.00013756,2]
[391081488,1760307032063,-422.1116,0.00014118,2]
[391081489,1760307032074,-1200.0,0.0001495,2]
[391081490,1760307032083,-1200.0,0.00014951,2]
[391081491,1760307032096,-300.0,0.00014951,2]
[391081492,1760307032106,-300.0,0.00015015,2]
[391081493,1760307032117,-300.0,0.00015015,2]
[391081494,1760307032128,-300.0,0.00015015,2]
[391081495,1760307032145,-211.87246119,0.00015016,2]
[391081496,1760307032155,-300.0,0.00015016,2]
[391081497,1760307032164,-195.0,0.00015016,2]
[391081498,1760307032174,-300.0,0.00015016,2]
[391081499,1760307032183,-250.0,0.00015016,2]
[391081500,1760307032193,-2000.0,0.00015016,2]
[391081501,1760307032203,-225.34794022,0.00015016,2]
[391081502,1760307032213,-211.87246119,0.00015947,2]
[391081503,1760307032222,-180.81802912,0.000162,2]
[391081504,1760307032232,-475.28169836,0.00016234,2]
[391081506,1760307032241,-180.81802912,0.000164,2]
[391081508,1760307032250,-420.0,0.00016433,2]
[391081510,1760307032259,-180.81802912,0.000165,2]
[391081512,1760307032269,-180.81802912,0.000167,2]
[391081514,1760307032278,-282.49661492,0.00016879,2]
[391081516,1760307032287,-250.0,0.00017,2]
[391081518,1760307032299,-499.99,0.00017728,2]
[391081520,1760307032309,-150.99,0.00017728,2]
[391081522,1760307032318,-353.12076865,0.0001781,2]
[391081524,1760307032328,-550.0,0.00017909,2]
[391081526,1760307032337,-587.0,0.00017985,2]
[391081528,1760307032347,-250.0,0.00018037,2]
[391081530,1760307032356,-423.74492238,0.00018742,2]
[391081532,1760307032365,-531.0,0.00018984,2]
[391081534,1760307032375,-300.0,0.00019,2]
[391081536,1760307032384,-160.52,0.00019649,2]
[391081538,1760307032397,-494.36907611,0.00019673,2]
[391081540,1760307032407,-823.0,0.00019683,2]
[391081544,1760307032418,-435.71,0.00020187,2]
[391081547,1760307032427,-500.0,0.00020425,2]
[391081550,1760307032436,-150.0,0.00020536,2]
[391081553,1760307032446,-564.99322984,0.00020605,2]
[391081556,1760307032455,-536.046,0.00020693,2]
[391081560,1760307032466,-2545.0,0.00020693,2]
[391081563,1760307032475,-1000.0,0.00020973,2]
[391081566,1760307032484,-457.56806527,0.0002104,2]
[391081569,1760307032496,-151.0,0.00021041,2]
[391081572,1760307032505,-500.0,0.00021041,2]
[391081575,1760307032514,-500.0,0.00021041,2]
[391081578,1760307032524,-500.0,0.00021041,2]
[391081581,1760307032534,-500.0,0.00021041,2]
[391081584,1760307032544,-9211.34798985,0.00021041,2]
[391081587,1760307032553,-500.0,0.00021041,2]
[391081589,1760307032563,-500.0,0.00021041,2]
[391081591,1760307032572,-500.0,0.00021041,2]
[391081593,1760307032582,-500.0,0.00021041,2]
[391081595,1760307032591,-500.0,0.00021041,2]
[391081597,1760307032600,-500.0,0.00021041,2]
[391081599,1760307032610,-248.71531821,0.00021041,2]
[391081601,1760307032620,-500.0,0.00021041,2]
[391081603,1760307032629,-1000.0,0.00021041,2]
[391081605,1760307032641,-500.0,0.00021041,2]
[391081607,1760307032650,-1000.0,0.00021041,2]
[391081609,1760307032660,-1000.0,0.00021041,2]
[391081611,1760307032669,-1000.0,0.00021041,2]
[391081613,1760307032679,-1000.0,0.00021041,2]
[391081615,1760307032689,-1000.0,0.00021041,2]
[391081617,1760307032698,-1000.0,0.00021041,2]
[391081619,1760307032707,-1000.0,0.00021041,2]
[391081621,1760307032716,-1000.0,0.00021041,2]
[391081623,1760307032726,-1000.0,0.00021041,2]
[391081625,1760307032737,-1000.0,0.00021041,2]
[391081627,1760307032746,-1000.0,0.00021041,2]
[391081629,1760307032756,-7420.19074317,0.00021096,2]
[391081632,1760307032770,-2131.9771223,0.00021096,2]
[391081634,1760307032779,-9905.5980765,0.00021151,2]
[391081636,1760307032789,-1000.0,0.00021152,2]
[391081638,1760307032799,-2358.57,0.0002116,2]
[391081640,1760307032809,-4444.58863743,0.00021206,2]
[391081642,1760307032820,-281.2354999,0.00021206,2]
[391081645,1760307032832,-905.45521288,0.00021206,2]
[391081647,1760307032843,-4640.82585512,0.00021206,2]
[391081649,1760307032852,-2634.20814695,0.00021261,2]
[391081651,1760307032863,-2220.0,0.00021261,2]
[391081653,1760307032875,-908.94509804,0.00021261,2]
[391081656,1760307032888,-4889.01985293,0.00021261,2]
[391081658,1760307032906,-11046.30350255,0.00021316,2]
[391081660,1760307032917,-1164.67664452,0.00021322,2]
[391081662,1760307032930,-435.32335548,0.00021322,2]
[391081664,1760307032940,-51.91832452,0.00021371,2]
[391081764,1760307038395,-244.122655,0.00014875,2]
[391081766,1760307038405,-2902.24831385,0.00021371,2]
[391081768,1760307038416,-1500.0,0.00021521,2]
[391081770,1760307038425,-635.61738357,0.00021536,2]
[391081772,1760307038434,-18859.152503,0.0002154,2]
[391081784,1760307038535,-424.008,0.0002154,2]
[391081787,1760307038547,-2830.389497,0.0002154,2]
[391081789,1760307038556,-664.0,0.00021541,2]
[391081791,1760307038566,-689.53,0.00021597,2]
[391081793,1760307038578,-200.0,0.00021643,2]
[391081795,1760307038587,-5000.0,0.00021918,2]
[391081797,1760307038597,-1000.0,0.00021945,2]
[391081799,1760307038607,-165.0,0.00022,2]
[391081801,1760307038617,-2027.47635837,0.00022069,2]
[391081803,1760307038627,-166.66,0.00022467,2]
[391081805,1760307038640,-706.24153731,0.00022467,2]
[391081807,1760307038652,-789.44,0.0002248,2]
[391081809,1760307038661,-300.0,0.00022624,2]
[391081811,1760307038671,-1000.0,0.00022739,2]
[391081813,1760307038681,-1954.73,0.00022753,2]
[391081815,1760307038690,-1852.42,0.00023021,2]
[391081817,1760307038700,-776.86569104,0.00023399,2]
[391081819,1760307038709,-1000.0,0.00023532,2]
[391081821,1760307038719,-164.99,0.00023679,2]
[391081823,1760307038729,-2545.0,0.00023693,2]
[391081825,1760307038739,-166.66,0.00023703,2]
[391081827,1760307038748,-264.2,0.00023828,30]
[391081829,1760307038758,-1600.0,0.00023988,2]
[391081831,1760307038768,-300.0,0.00023994,2]
[391081833,1760307038778,-269.107,0.00024018,5]
[391081835,1760307038787,-1000.0,0.00024325,2]
[391081837,1760307038797,-847.48984477,0.0002433,2]
[391081839,1760307038806,-1000.0,0.0002434,2]
[391081841,1760307038815,-500.0,0.00024343,2]
[391081843,1760307038825,-500.0,0.00024383,2]
[391081845,1760307038834,-500.0,0.00024393,2]
[391081847,1760307038844,-506.0,0.00024397,2]
[391081849,1760307038853,-500.0,0.00024419,2]
[391081851,1760307038862,-500.0,0.00024517,2]
[391081853,1760307038872,-500.0,0.00024625,2]
[391081855,1760307038882,-800.0,0.00024791,2]
[391081857,1760307038891,-500.0,0.00024793,2]
[391081859,1760307038902,-500.0,0.00024811,2]
[391081861,1760307038912,-1000.0,0.00024824,2]
[391081863,1760307038921,-500.0,0.0002488,2]
[391081865,1760307038930,-166.66,0.00024939,2]
[391081867,1760307038939,-1000.0,0.00024947,2]
[391081869,1760307038949,-1000.0,0.00024986,2]
[391081871,1760307038958,-1022.4,0.00025,2]
[391081873,1760307038967,-500.0,0.00025039,7]
[391081875,1760307038977,-500.0,0.00025044,7]
[391081877,1760307038986,-150.0,0.00025065,2]
[391081879,1760307038995,-523.76331923,0.00025065,2]
[391081881,1760307039005,-407.62022777,0.00025116,7]
[391081883,1760307039014,-1000.0,0.00025211,7]
[391081885,1760307039023,-167.89222814,0.00025216,7]
[391081887,1760307039032,-918.1139985,0.00025262,3]
[391081889,1760307039042,-500.0,0.00025339,7]
[391081890,1760307039051,-800.0,0.00025343,7]
[391081893,1760307039060,-1000.0,0.00025351,7]
[391081894,1760307039070,-172.35347518,0.00025358,7]
[391081896,1760307039079,-500.0,0.00025373,7]
[391081898,1760307039088,-475.28169836,0.00025447,7]
[391081900,1760307039098,-500.0,0.00025476,7]
[391081902,1760307039107,-500.0,0.00025489,7]
[391081928,1760307039423,-1022.4,0.000255,2]
[391081929,1760307039433,-500.0,0.0002558,7]
[391081930,1760307039442,-500.0,0.00025678,7]
[391081931,1760307039452,-500.0,0.00025754,7]
[391081932,1760307039461,-500.0,0.00025755,7]
[391081933,1760307039471,-500.0,0.00025794,7]
[391081934,1760307039480,-500.0,0.00025808,7]
[391081935,1760307039491,-800.0,0.0002581,7]
[391081936,1760307039501,-500.0,0.00025811,7]
[391081937,1760307039510,-500.0,0.00025857,7]
[391081938,1760307039522,-500.0,0.00025974,7]
[391081939,1760307039532,-500.0,0.00025976,7]
[391081940,1760307039542,-500.0,0.00026035,7]
[391081941,1760307039551,-500.0,0.0002613,7]
[391081942,1760307039560,-500.0,0.0002616,7]
[391081943,1760307039569,-166.66,0.00026175,2]
[391081944,1760307039579,-988.73815223,0.00026193,5]
[391081945,1760307039588,-331.91697211,0.00026214,2]
[391081946,1760307039601,-168.08302789,0.00026214,2]
[391081947,1760307039611,-342.16705211,0.00026221,7]
[391081948,1760307039623,-157.83294789,0.00026221,7]
[391081949,1760307039632,-402.19218488,0.0002624,7]
[391081950,1760307039643,-97.80781512,0.0002624,7]
[391081951,1760307039658,-1000.0,0.00026248,7]
[391081952,1760307039668,-500.0,0.0002635,7]
[391081953,1760307039677,-500.0,0.00026424,7]
[391081954,1760307039687,-400.0,0.00026488,2]
[391081955,1760307039696,-800.0,0.0002655,7]
[391081956,1760307039706,-1000.0,0.00026565,7]
[391081957,1760307039716,-1000.0,0.00026653,7]
[391081958,1760307039726,-435.71,0.00026676,2]
[391081959,1760307039735,-800.0,0.00026689,7]
[391081960,1760307039744,-2545.0,0.00026693,2]
[391081961,1760307039754,-1000.0,0.00026736,2]
[391081962,1760307039763,-500.0,0.00026752,7]
[391081963,1760307039773,-500.0,0.00026875,7]
[391081964,1760307039782,-1000.0,0.00026944,7]
[391081966,1760307039792,-150.0,0.00027,2]
[391081967,1760307039801,-500.96828797,0.00027,60]
[391081968,1760307039811,-1000.0,0.00027027,7]
[391081969,1760307039820,-500.0,0.00027034,7]
[391081970,1760307039829,-500.0,0.00027105,7]
[391081971,1760307039839,-1059.36230596,0.00027125,7]
[391081972,1760307039848,-702.31008248,0.00027167,7]